Cogmind - Beta 12 X1 @@@ ROGUE MODE // 2022.08.30 @ 17:52:21 Player: Decinym Result: Destroyed by D-53 Grenadier with Mini Grenade Launcher Performance ------------- Evolutions (0) 0 Regions Visited (2) 400 Robots Destroyed (13) 65 Value Destroyed (305) 305 Prototype IDs (0) 0 Alien Tech Used (0) 0 Bonus (0) 0 TOTAL SCORE: 770 Bonus ------- None Cogmind --------- Core Integrity 0/250 Matter 200/300 Energy 99/100 System Corruption 0% Temperature Cool (0) Movement Core (100) Ox1 Location -10/Mines Parts ------- > --- POWER (1) -------- (None) > --- PROPULSION (2) --- (None) > --- UTILITY (2) ------ Small Storage Unit > --- WEAPON (2) ------- Light Assault Rifle > --- INVENTORY (8) ---- Ion Engine Light Treads Light Treads Compact Wheel High-capacity Matter Pod (194) Light Assault Rifle Grenade Launcher Explosive Trap Peak State ------------ > --- POWER ------------ Light Ion Engine > --- PROPULSION ------- Aluminum Leg Aluminum Leg > --- UTILITY ---------- Improved Heat Sink Small Storage Unit > --- WEAPON ----------- Light Assault Rifle Light Assault Rifle > --- INVENTORY -------- Ion Engine Light Treads Light Treads Wheel Compact Wheel High-capacity Matter Pod Assault Rifle Grenade Launcher [Rating: 9] Favorites ----------- Power Ion Engine Engine Ion Engine Propulsion Aluminum Leg Leg Aluminum Leg Utility Small Storage Unit Device Improved Heat Sink Storage Small Storage Unit Weapon Light Assault Rifle Ballistic Gun Light Assault Rifle Launcher Grenade Launcher Build | -11 -10 -10 ------- Run | Scr Mat Min Slots Evolved . | . . . Power . | . . . Propulsion . | . . . Utility . | . . . Weapon . | . . . Parts Attached 14 | . 3 11 Power 3 | . 1 2 Engine 3 | . 1 2 Core . | . . . Reactor . | . . . Propulsion 3 | . 1 2 Treads . | . . . Leg 3 | . 1 2 Wheel . | . . . Hover . | . . . Flight . | . . . Utility 1 | . 1 . Device 1 | . 1 . Storage . | . . . Processor . | . . . Hackware . | . . . Protection . | . . . Artifact . | . . . Weapon 7 | . . 7 Energy Gun . | . . . Energy Cannon . | . . . Ballistic Gun 5 | . . 5 Ballistic Cannon . | . . . Launcher 2 | . . 2 Special Weapon . | . . . Impact Weapon . | . . . Slashing Weapon . | . . . Piercing Weapon . | . . . Special Melee Weapon . | . . . Unidentified Prototypes . | . . . Parts Lost 6 | . . 6 Power 1 | . . 1 Propulsion 2 | . . 2 Utility 1 | . . 1 Weapon 2 | . . 2 Highest Loss Streak 5 | . . 5 To Critical Strikes . | . . . Average Slot Usage (%) 98 | . 89 100 Engine 14 | . 14 14 Leg 28 | . 28 28 Device 12 | . 4 14 Storage 14 | . 14 14 Ballistic Gun 27 | . 28 27 Naked Turns . | . . . Heaviest Build 15 | 10 13 15 Greatest Support 20 | 20 20 20 Greatest Overweight (x) . | . . . Average Overweight (x) . | . . . Largest Inventory Capacity 8 | . 8 8 Average Capacity 8 | . 8 8 Most Carried 8 | . 8 8 Average Carried 7 | . 7 7 Final Capacity 8 | 8 8 8 Final Carried 8 | 6 8 8 Class Distribution -------------------- 82% | Scavenger-Mutant 17% | Mutant Dominant Class ---------------- Mutant | -10/Materials Scavenger-Mutant | -10/Mines Resources | -11 -10 -10 ----------- Run | Scr Mat Min Matter Collected 651 | 200 106 345 Remotely . | . . . Salvage Created 522 | . 129 393 Parts 30 | . 10 20 Haulers Intercepted . | . . . Recyclers Shooed 1 | . . 1 Parts Field Recycled . | . . . Retrieved Matter . | . . . Parts Self-Destructed . | . . . Prevented . | . . . Kills | -11 -10 -10 ------- Run | Scr Mat Min Combat Hostiles Destroyed 17 | . 5 12 Guns 11 | . 5 6 AOE 6 | . . 6 Classes Destroyed 4 | . 2 2 Recycler 2 | . . 2 Swarmer 5 | . 3 2 Grunt 6 | . 2 4 Assembled 6 | . . 6 Best Kill Streak 5 | . 5 4 Combat Bots Only 5 | . 5 3 Max Kills in Single Turn 2 | . 1 2 Gunslinging . | . . . Exploded 2 | . . 2 Melee . | . . . Uniques/NPCs Destroyed . | . . . Combat | -11 -10 -10 -------- Run | Scr Mat Min Damage Taken 993 | . 213 780 Core 252 | . 72 180 Absorbed by Shields . | . . . Core Remaining (%) 100 | 100 . . Volleys Fired 76 | . 20 56 Largest 2 | . 2 2 Hottest 40 | . 40 40 Shots Fired 141 | . 40 101 Gun 131 | . 40 91 Cannon . | . . . Launcher 10 | . . 10 Special . | . . . Kinetic 131 | . 40 91 Thermal . | . . . Explosive 10 | . . 10 Electromagnetic . | . . . Robot Hit Streak 14 | . 14 11 Robot Miss Streak 5 | . 3 5 Penetration Max . | . . . Secondary Targets 3 | . 1 2 Max Gunslinging Chain 1 | . 1 1 Shots Hit Robots 84 | . 27 57 Core Hits 45 | . 13 32 Critical Kills 2 | . . 2 Critical Parts Destroyed 1 | . 1 . Critical Strikes 3 | . 1 2 Destroy 3 | . 1 2 Melee Attacks . | . . . Impact . | . . . Slashing . | . . . Piercing . | . . . Sneak Attacks . | . . . Combat Hostiles . | . . . Follow-up Attacks . | . . . Damage Inflicted 947 | . 207 740 Guns 706 | . 207 499 Cannons . | . . . Explosions 241 | . . 241 Melee . | . . . Ramming . | . . . Kinetic 706 | . 207 499 Thermal . | . . . Explosive 241 | . . 241 Electromagnetic . | . . . Impact . | . . . Slashing . | . . . Piercing . | . . . Highest Corruption . | . . . Average Corruption . | . . . Corruption Purged . | . . . Corruption Blocked . | . . . Overload Shots . | . . . Overflow Damage . | . . . Projectiles . | . . . Explosions . | . . . Melee . | . . . Knockbacks . | . . . Impact . | . . . Kinetic . | . . . Secondary . | . . . Self-Inflicted Damage 55 | . . 55 Shots 3 | . . 3 Rammed . | . . . Targets Rammed . | . . . Kicked . | . . . Crushed . | . . . Highest Temperature 24 | . 24 . Average Temperature 9 | . 9 . Received Heat Transfer 195 | . 48 147 Siege Activations . | . . . Robots Corrupted . | . . . Combat Hostiles . | . . . Parts Fried . | . . . Impact Corruptions . | . . . Robots Melted . | . . . Combat Hostiles . | . . . Parts Melted . | . . . Heat Transferred . | . . . Parts Sabotaged . | . . . Parts Stolen . | . . . Parts Stripped . | . . . Power Chain Reactions . | . . . Missiles Intercepted . | . . . Alert | -11 -10 -10 ------- Run | Scr Mat Min Peak Influence 244 | . 135 244 Initial 52 | . . 52 Average 107 | . 61 113 Maximum Alert Level 1 | . . 1 Low Security (%) 87 | . 100 85 Level 1 12 | . . 14 Level 2 . | . . . Level 3 . | . . . Level 4 . | . . . Level 5 . | . . . High Security . | . . . Max Security . | . . . Squads Dispatched . | . . . Investigation . | . . . Extermination . | . . . Reinforcement . | . . . Assault . | . . . Garrison . | . . . Intercept . | . . . Searches Triggered . | . . . Construction Impeded . | . . . Haulers Reinforced . | . . . Active Scanning Responses . | . . . Cargo Convoy Interrupts . | . . . Stealth | -11 -10 -10 --------- Run | Scr Mat Min Distress Signals . | . . . Communications Jammed . | . . . Distress Signals . | . . . Times Spotted 30 | . 8 22 Peak Tracking Total 14 | . 4 14 Tactical Retreats 3 | . 1 2 Traps | -11 -10 -10 ------- Run | Scr Mat Min Traps Triggered . | . . . Indirectly . | . . . Trap Hack Attempts . | . . . Triggered . | . . . Disarmed . | . . . Reprogrammed . | . . . Reused . | . . . Traps Extracted . | . . . Installed . | . . . Triggered . | . . . Most Traps Carried 1 | . . 1 Machines | -11 -10 -10 ---------- Run | Scr Mat Min Machines Disabled . | . . . Max in Single Turn . | . . . Machines Sabotaged . | . . . Garrisons Compromised . | . . . Overloaded Fab Kills . | . . . Hacking | -11 -10 -10 --------- Run | Scr Mat Min Machines Accessed . | . . . Terminals . | . . . Fabricators . | . . . Repair Stations . | . . . Recycling Units . | . . . Scanalyzers . | . . . Garrison Access . | . . . Total Hacks . | . . . Successful . | . . . Failed . | . . . Catastrophic . | . . . Database Lockouts . | . . . Manual . | . . . Terminals . | . . . Fabricators . | . . . Repair Stations . | . . . Recycling Units . | . . . Scanalyzers . | . . . Garrison Access . | . . . Terminal Hacks . | . . . Fabricator Hacks . | . . . Repair Station Hacks . | . . . Recycling Unit Hacks . | . . . Scanalyzer . | . . . Garrison Access Hacks . | . . . Unauthorized Hacks . | . . . Terminals . | . . . Fabricators . | . . . Repair Stations . | . . . Recycling Units . | . . . Scanalyzers . | . . . Garrison Access . | . . . Data Cores Recovered . | . . . Used . | . . . Hacking Detections . | . . . Full Trace Events . | . . . Feedback Events . | . . . Feedback Blocked . | . . . Robot Schematics Acquired . | . . . Robots Built . | . . . Authchips . | . . . Time . | . . . Total Robot Build Rating . | . . . Part Schematics Acquired . | . . . Parts Built . | . . . Authchips . | . . . Time . | . . . Total Part Build Rating . | . . . Parts Repaired . | . . . Time . | . . . Parts Recycled . | . . . Recycled Matter . | . . . Retrieved Matter . | . . . Retrieved Components . | . . . Parts Scanalyzed . | . . . Part Schematics Acquired . | . . . Parts Damaged . | . . . Bothacking | -11 -10 -10 ------------ Run | Scr Mat Min Used RIF Installer . | . . . Robots Hacked . | . . . Non-combat . | . . . Combat . | . . . Robot Hacks Applied . | . . . Relay Couplers Released . | . . . Fabnet Peak Effective % . | . . . Robots Rewired . | . . . Allies Hacked . | . . . Hacks Repelled . | . . . Allies | -11 -10 -10 -------- Run | Scr Mat Min Total Allies . | . . . Largest Group . | . . . Highest-Rated Group . | . . . Highest-Rated Ally . | . . . Total Orders . | . . . Ally Attacks . | . . . Total Damage . | . . . Kills . | . . . Allies Corrupted . | . . . Allies Melted . | . . . Intel | -11 -10 -10 ------- Run | Scr Mat Min Robot Analysis Total . | . . . Derelict Logs Recovered 1 | . . 1 Drone Launches . | . . . Drone Recoveries . | . . . Exploration | -11 -10 -10 ------------- Run | Scr Mat Min Turns Passed 1328 | . 174 1154 Spaces Moved 521 | 1 94 426 Core . | . . . Treads . | . . . Legs 521 | 1 94 426 Wheels . | . . . Hover . | . . . Flight . | . . . Fastest Speed 120 | 120 120 120 Average Speed 120 | 120 120 120 Slowest Speed 120 | 120 120 120 Overloaded Moves . | . . . Propulsion Burnouts . | . . . Robots Hopped . | . . . Cave-ins Triggered . | . . . Exploration Rate (%) 29 | 1 23 64 Regions Visited 2 Branch Regions 1 Pre-discovered Areas 2 | . . 2 Known Exits Taken . | . . . Unknown Exits Taken 2 | 1 1 . Scrap Searched . | . . . Spaces Dug . | . . . Terrain Destroyed 78 | . . 78 Melee . | . . . Projectile . | . . . AOE 78 | . . 78 Terrain Rammed . | . . . Walls Destroyed . | . . . Machines Disabled . | . . . Actions | -11 -10 -10 --------- Run | Scr Mat Min Total 1109 | . 124 985 Wait 489 | . 4 485 Move 519 | . 93 426 Hop . | . . . Pick Up 4 | . 2 2 Fast Attach 1 | . 1 . Attach 1 | . . 1 Detach . | . . . Swap 12 | . 2 10 Drop 7 | . 2 5 Fire 76 | . 20 56 Melee . | . . . Ram . | . . . Kick . | . . . Crush . | . . . Escape Stasis . | . . . Rewire . | . . . Trap . | . . . Miscellaneous . | . . . Route ------- -11/Scrapyard -10/Materials -10/Mines History --------- Turn | Location | Event 1 | -11/Scrapyard | Discovered new exit (range 0) 1 | -11/Scrapyard | Entered Materials 157 | -10/Materials | Discovered new exit (range 15) 175 | -10/Materials | Entered Mines 303 | -10/Mines | Learned location of Storage (-9) 454 | -10/Mines | Found a hidden stash of uninstalled traps 485 | -10/Mines | Core integrity fell below 50% 534 | -10/Mines | Build established: Scavenger-Mutant 683 | -10/Mines | Assembled infested the area 688 | -10/Mines | Assisted by a Guerilla fighting off Assembled 794 | -10/Mines | Core integrity fell below 20% 1329 | -10/Mines | Destroyed by D-53 Grenadier with Mini Grenade Launcher Last Messages --------------- 00742_ as-13266 destroyed. 00742_ as-08086 destroyed. 00743_ The unstable cave ceiling collapses. 00749_ R-06 Scavenger destroyed. 00752_ Acquired 96 matter. 00785_ Acquired 16 matter. 00797_ as-03337 destroyed. 00808_ as-71912 destroyed. 00814_ as-67542 destroyed. 00818_ The unstable cave ceiling collapses. 00913_ K-01 Serf collects debris. 01321_ Imp. Heat Sink destroyed. 01323_ D-53 Grenadier destroyed. 01323_ Ion Engine destroyed. 01324_ U-05 Engineer builds a Wall. 01327_ The unstable cave ceiling collapses. 01327_ Aluminum Leg destroyed. 01327_ Assault Rifle destroyed. 01329_ The unstable cave ceiling collapses. 01329_ U-05 Engineer builds a Wall. Map ----- +----------------------------------------------------+ | | | | | | | | | | | | | | | | | | | | | | | | | | | ?????????????????????????????????????????????????? | | ?????????????????????????????????????????????????? | | ???????????????????????????????????????????####### | | ####????????????????????????????????######## | | ####???#####?????????????????????#** | | ##?## ##????????????????????#= [ """ | | ### #????????????????????# =##### """ | | #??###########???##### =#???# """ | | ##?# # ##?## # [#???# | | ## ## # ###?# """ | | # # # ### """ | | ### # #### ## """ | | ##?## """ #### @ d u = ## | | ????# """ ##??# ## ### | | ????# """ #??# ## # #####?# | | ????# ##?## # # ###?????####### | | ????# #??## ### ### ##?????????????? | | ????## ##??#####?# ###??????????????? | | ?????#### ##??????## #???????????????? | | ????????# ####??## #???????????????? | | ????????# ##?# #???????????????? | | ????????# ## ##???????????????? | | ????????## ## = #????????????????? | | ?????????### ### #????????????????? | | ???????????## ######?# ##????????????????? | | ????????????# ##??????# # #????????????????? | | ###????????## ##?####### ######???????????? | | ##???????# #### ##### #???????????? | | ##?????## ## ##? #### #???????????? | | ##??### #? #??# #???????????? | | #?## #? % #??# #???????????? | | ### ## #??# #???????????? | | % ## = #??# #???????????? | | *! %= ##??# #???????????? | | * #####???# #???????????? | | ##### ## ! *## #??????## ##??????????? | | #???# ### ###= ######= ##?????????? | +----------------------------------------------------+ Best States ------------- Heat Dissipation 39 Energy Generation 10 Energy Capacity 250 Matter Stores 300 Matter Capacity 300 Sight Range 16 Terrain Scan Density 10 Evasion (%) 55 Item Schematics ----------------- None Robot Schematics ------------------ None Fabricated ------------ Nothing Alien Tech Used ----------------- None Achievements -------------- None Challenges ------------ None Game ------ Seed AntimissileRelayTorch Manual? 0 Play Time 00:09:09 Cumulative 400.9 hours Start 2022.08.30 @ 17:47:14 End 2022.08.30 @ 17:52:21 Sessions 1 Manual Loads 0 Difficulty Rogue Special Mode None Game No. 418 Rogue 418 Adventurer 0 Explorer 0 Win Type - Total 31 Types 18/3/3/1/2/1/3/0/0 Lore% 91 Gallery% 93 Achievement% 81 Wizard Run 0 Options --------- ASCII 0 Keyboard 0 Movement Arrows Keybinds 0 Fullscreen 2 Font 24/Smallcaps Map View 76x50 Tactical HUD 1 Map Filters NONE Filters NONE Steam 1 RUN: 6c21ee9c-817f-4b86-88e9-ddc1896bcaf5